fUST/lending_fUST_20250614
["ID","MTS","AMOUNT","RATE_DAILY","PERIOD"]
[365713774,1749844239840,-475.3581481,0.00021369,4]
[365713775,1749844239851,-460.0,0.00021369,4]
[365713776,1749844239865,-818.62,0.00021369,4]
[365713777,1749844239875,-460.0,0.00021369,4]
[365713778,1749844239884,-460.0,0.00021369,4]
[365713779,1749844239894,-460.0,0.00021369,4]
[365713780,1749844239905,-460.0,0.00021369,4]
[365713781,1749844240019,-1158.1,0.00021369,4]
[365713782,1749844240028,-460.0,0.00021369,4]
[365713783,1749844240038,-3468.8,0.00021369,4]
[365713784,1749844240047,-460.0,0.00021369,4]
[365713785,1749844240057,-626.88,0.00021369,4]
[365713786,1749844240066,-1528.91,0.00021369,4]
[365713787,1749844240076,-658.05,0.00021369,4]
[365713788,1749844240085,-460.0,0.00021369,4]
[365713789,1749844240094,-460.0,0.00021369,4]
[365713791,1749844240103,-460.0,0.00021369,4]
[365713793,1749844240112,-509.69530491,0.00021369,4]
[365713796,1749844240121,-420.0,0.00021369,4]
[365713799,1749844240130,-460.0,0.00021369,4]
[365713801,1749844240140,-460.0,0.00021369,4]
[365713804,1749844240150,-460.0,0.00021369,4]
[365713806,1749844240160,-500.0,0.00021389,2]
[365713809,1749844240169,-473.87128663,0.00021389,2]
[365713812,1749844240178,-2321.26,0.000214,2]
[365713813,1749844240188,-471.96435808,0.00021478,2]
[365713815,1749844240197,-500.0,0.00021478,2]
[365713816,1749844240206,-500.0,0.00021478,2]
[365713818,1749844240215,-500.0,0.00021508,2]
[365713819,1749844240224,-528.15843884,0.00021543,2]
[365713820,1749844240234,-500.0,0.00021559,2]
[365713821,1749844240243,-500.0,0.00021592,2]
[365713822,1749844240252,-500.0,0.00021592,2]
[365713823,1749844240262,-500.0,0.00021592,2]
[365713824,1749844240271,-500.0,0.0002162,2]
[365713825,1749844240280,-500.0,0.0002163,2]
[365713826,1749844240289,-614.97389559,0.0002163,2]
[365713827,1749844240299,-500.0,0.00021642,3]
[365713828,1749844240308,-460.0,0.00021642,4]
[365713829,1749844240318,-985.45,0.00021642,4]
[365713830,1749844240328,-464.7,0.00021642,4]
[365713831,1749844240337,-460.0,0.00021642,4]
[365713832,1749844240347,-460.0,0.00021643,4]
[365713833,1749844240356,-234.14138066,0.00021643,4]
[365713834,1749844240365,-460.0,0.00021643,4]
[365713835,1749844240375,-540.0,0.00021643,4]
[365713836,1749844240385,-460.0,0.00021643,2]
[365713837,1749844240394,-460.0,0.00021643,4]
[365713838,1749844240403,-460.0,0.00021643,4]
[365713839,1749844240412,-460.0,0.00021643,4]
[365713840,1749844240422,-512.0,0.00021643,4]
[365713841,1749844240431,-487.34,0.00021643,4]
[365713842,1749844240440,-460.0,0.00021643,4]
[365713843,1749844240450,-460.0,0.00021643,4]
[365713844,1749844240459,-1267.0,0.00021643,4]
[365713845,1749844240469,-460.0,0.00021643,4]
[365713846,1749844240478,-460.0,0.00021643,4]
[365713847,1749844240487,-460.0,0.00021643,4]
[365713848,1749844240495,-589.86,0.00021643,4]
[365713849,1749844240504,-554.02315985,0.00021643,4]
[365713850,1749844240514,-460.0,0.00021643,4]
[365713851,1749844240523,-460.0,0.00021643,4]
[365713852,1749844240533,-460.0,0.00021643,4]
[365713853,1749844240543,-460.0,0.00021643,4]
[365713854,1749844240552,-460.0,0.00021643,4]
[365713855,1749844240562,-813.82,0.00021643,4]
[365713856,1749844240574,-460.0,0.00021643,4]
[365713857,1749844240583,-460.0,0.00021643,4]
[365713858,1749844240592,-818.62,0.00021643,4]
[365713859,1749844240601,-460.0,0.00021643,4]
[365713860,1749844240611,-481.25,0.00021643,4]
[365713861,1749844240620,-460.0,0.00021643,4]
[365713862,1749844240630,-1158.1,0.00021643,4]
[365713863,1749844240639,-460.0,0.00021643,4]
[365713864,1749844240648,-3468.8,0.00021643,4]
[365713865,1749844240658,-460.0,0.00021643,4]
[365713866,1749844240667,-626.88,0.00021643,4]
[365713867,1749844240677,-1528.91,0.00021643,4]
[365713868,1749844240686,-658.05,0.00021643,4]
[365713869,1749844240696,-460.0,0.00021643,4]
[365713870,1749844240705,-358.32,0.00021643,4]
[365713871,1749844240714,-460.0,0.00021643,4]
[365713872,1749844240724,-500.0,0.00021652,2]
[365713873,1749844240733,-500.0,0.00021652,2]
[365713874,1749844240742,-500.0,0.00021652,2]
[365713875,1749844240752,-508.50880777,0.00021652,2]
[365713876,1749844240761,-506.45617297,0.00021652,2]
[365713877,1749844240771,-281.68972907,0.00021695,2]
[365713878,1749844240780,-402.402963,0.000219,2]
[365713879,1749844240790,-2506.18882312,0.000219,6]
[365713880,1749844240799,-635.54,0.00021907,3]
[365713882,1749844240808,-160.0,0.00021909,2]
[365713884,1749844240818,-985.45,0.00021909,4]
[365713885,1749844240827,-985.45,0.00021909,4]
[365713886,1749844240836,-985.45,0.00021909,4]
[365713887,1749844240846,-985.45,0.00021909,4]
[365713888,1749844240856,-985.45,0.00021909,4]
[365713889,1749844240870,-985.45,0.00021909,4]
[365713890,1749844240878,-985.45,0.00021909,4]
[365713891,1749844240887,-985.45,0.00021909,4]
[365713892,1749844240898,-985.45,0.00021909,4]
[365713893,1749844240907,-985.45,0.00021909,4]
[365713894,1749844240916,-985.45,0.00021909,4]
[365713895,1749844240926,-985.45,0.00021909,4]
[365713896,1749844240936,-985.58945643,0.00021909,4]
[365713897,1749844240945,-308.67,0.00021916,4]
[365713898,1749844240955,-464.7,0.00021916,4]
[365713900,1749844240964,-491.65,0.00021916,4]
[365713902,1749844240973,-237.98110835,0.00021916,2]
[365713903,1749844240983,-500.0,0.00021916,2]
[365713904,1749844240993,-500.0,0.00021916,2]
[365713906,1749844241002,-500.0,0.00021916,2]
[365713908,1749844241012,-594.49058783,0.00021916,2]
[365713909,1749844241021,-339.51541226,0.00021917,4]
[365713910,1749844241030,-460.0,0.00021917,2]
[365713911,1749844241040,-490.60026302,0.00021917,4]
[365713913,1749844241050,-460.0,0.00021917,4]
[365713915,1749844241059,-487.34,0.00021917,4]
[365713917,1749844241070,-460.0,0.00021917,4]
[365713919,1749844241080,-460.0,0.00021917,4]
[365713921,1749844241089,-1267.0,0.00021917,4]
[365713923,1749844241098,-460.0,0.00021917,4]
[365713925,1749844241107,-460.0,0.00021917,4]
[365713927,1749844241116,-460.0,0.00021917,4]
[365713929,1749844241125,-460.0,0.00021917,4]
[365713931,1749844241135,-460.0,0.00021917,4]
[365713933,1749844241144,-460.0,0.00021917,4]
[365713935,1749844241153,-813.82,0.00021917,4]
[365713937,1749844241163,-460.0,0.00021917,4]
[365713939,1749844241172,-460.0,0.00021917,4]
[365713941,1749844241182,-818.62,0.00021917,4]
[365713943,1749844241191,-460.0,0.00021917,4]
[365713945,1749844241200,-500.0,0.00021917,2]
[365713947,1749844241209,-460.0,0.00021917,4]
[365713949,1749844241219,-1158.1,0.00021917,4]
[365713951,1749844241228,-460.0,0.00021917,4]
[365713953,1749844241237,-3468.8,0.00021917,4]
[365713955,1749844241246,-460.0,0.00021917,4]
[365713957,1749844241255,-626.88,0.00021917,4]
[365713959,1749844241264,-1528.91,0.00021917,4]
[365713961,1749844241273,-658.05,0.00021917,4]
[365713963,1749844241282,-460.0,0.00021917,4]
[365713964,1749844241292,-460.0,0.00021917,4]
[365713965,1749844241301,-400.47083913,0.00021918,7]
[365713966,1749844241310,-500.0,0.00021937,2]
[365713967,1749844241321,-189.0,0.00022,2]
[365713968,1749844241330,-166.0,0.00022,2]
[365713969,1749844241340,-2506.18882283,0.00022003,6]
[365713970,1749844241349,-1046.32981503,0.00022056,2]
[365713971,1749844241359,-528.15843882,0.00022076,2]
[365713972,1749844241368,-2506.18882283,0.00022107,6]
[365713973,1749844241377,-1000.0,0.00022107,2]
[365713974,1749844241387,-500.0,0.0002214,2]
[365713975,1749844241396,-500.0,0.0002214,2]
[365713976,1749844241405,-500.0,0.00022168,2]
[365713977,1749844241414,-500.0,0.0002219,4]
[365713978,1749844241423,-464.7,0.0002219,4]
[365713979,1749844241432,-460.0,0.00022191,2]
[365713980,1749844241441,-460.0,0.00022191,4]
[365713981,1749844241451,-487.34,0.00022191,4]
[365713982,1749844241460,-460.0,0.00022191,4]
[365713983,1749844241469,-460.0,0.00022191,4]
[365713984,1749844241479,-1267.0,0.00022191,4]
[365713985,1749844241488,-460.0,0.00022191,4]
[365713986,1749844241497,-460.0,0.00022191,4]
[365713987,1749844241507,-460.0,0.00022191,4]
[365713988,1749844241517,-460.0,0.00022191,4]
[365713989,1749844241526,-460.0,0.00022191,4]
[365713990,1749844241535,-460.0,0.00022191,4]
[365713991,1749844241545,-813.82,0.00022191,4]
[365713992,1749844241554,-460.0,0.00022191,4]
[365713994,1749844241563,-460.0,0.00022191,4]
[365713996,1749844241577,-818.62,0.00022191,4]
[365713998,1749844241586,-460.0,0.00022191,4]
[365714000,1749844241595,-460.0,0.00022191,4]
[365714002,1749844241606,-1158.1,0.00022191,4]
[365714004,1749844241615,-460.0,0.00022191,4]
[365714006,1749844241625,-3468.8,0.00022191,4]
[365714008,1749844241634,-460.0,0.00022191,4]
[365714010,1749844241644,-626.88,0.00022191,4]
[365714012,1749844241653,-1528.91,0.00022191,4]
[365714014,1749844241662,-658.05,0.00022191,4]
[365714016,1749844241671,-460.0,0.00022191,4]
[365714018,1749844241681,-460.0,0.00022191,4]
[365714020,1749844241690,-4541.27,0.000222,7]
[365714022,1749844241700,-1081.8067129,0.000222,2]
[365714024,1749844241710,-504.97186885,0.000222,2]
[365714026,1749844241719,-2506.18882283,0.0002221,6]
[365714028,1749844241729,-2506.18882283,0.00022314,7]
[365714030,1749844241738,-2506.18882283,0.00022417,7]
[365714032,1749844241747,-464.7,0.00022464,4]
[365714034,1749844241756,-460.0,0.00022465,2]
[365714036,1749844241766,-460.0,0.00022465,4]
[365714038,1749844241776,-487.34,0.00022465,4]
[365714040,1749844241785,-460.0,0.00022465,4]
[365714042,1749844241795,-1267.0,0.00022465,4]
[365714044,1749844241804,-215.16,0.00022465,4]
[365714046,1749844241814,-460.0,0.00022465,4]
[365714048,1749844241825,-230.73,0.00022465,4]
[365714050,1749844241835,-460.0,0.00022465,4]
[365714052,1749844241845,-211.18,0.00022465,4]
[365714054,1749844241854,-813.82,0.00022465,4]
[365714056,1749844241867,-460.0,0.00022465,4]
[365714058,1749844241876,-818.62,0.00022465,4]
[365714060,1749844241886,-460.0,0.00022465,4]
[365714062,1749844241895,-460.0,0.00022465,4]
[365714064,1749844241905,-1158.1,0.00022465,4]
[365714066,1749844241915,-460.0,0.00022465,4]
[365714068,1749844241924,-3468.8,0.00022465,4]
[365714070,1749844241934,-460.0,0.00022465,4]
[365714072,1749844241944,-626.88,0.00022465,4]
[365714074,1749844241954,-1528.91,0.00022465,4]
[365714075,1749844241964,-658.05,0.00022465,4]
[365714078,1749844241973,-460.0,0.00022465,4]
[365714080,1749844241983,-170.69303325,0.00022465,4]
[365714082,1749844241992,-500.0,0.00022466,2]
[365714084,1749844242002,-500.0,0.00022466,2]
[365714085,1749844242011,-500.0,0.00022466,2]
[365714087,1749844242020,-500.0,0.00022466,2]
[365714089,1749844242029,-500.0,0.00022466,2]
[365714092,1749844242039,-500.0,0.00022466,2]
[365714094,1749844242049,-248.78269547,0.00022466,2]
[365714096,1749844242058,-500.0,0.00022466,2]
[365714098,1749844242068,-500.0,0.00022466,2]
[365714099,1749844242077,-500.0,0.00022466,2]
[365714101,1749844242086,-500.0,0.00022466,2]
[365714103,1749844242095,-500.0,0.00022466,2]
[365714105,1749844242105,-500.0,0.00022466,2]
[365714107,1749844242114,-500.0,0.00022466,2]
[365714109,1749844242123,-500.0,0.00022466,2]
[365714112,1749844242133,-500.0,0.00022466,2]
[365714114,1749844242142,-500.0,0.00022466,2]
[365714116,1749844242151,-500.0,0.00022466,2]
[365714118,1749844242160,-500.0,0.00022473,2]
[365714120,1749844242170,-500.0,0.00022473,2]
[365714122,1749844242179,-424.32678023,0.00022499,2]
[365714124,1749844242188,-160.0,0.00022499,2]
[365714125,1749844242197,-835.28007164,0.00022499,2]
[365714127,1749844242206,-160.0,0.000225,2]
[365714129,1749844242215,-160.0,0.000225,2]
[365714131,1749844242224,-213.24139183,0.000225,2]
[365714133,1749844242233,-160.0,0.000225,2]
[365714135,1749844242242,-142093.07,0.000225,7]
[365714137,1749844242251,-2321.26,0.000225,7]
[365714140,1749844242261,-2506.18882283,0.00022521,7]
[365714142,1749844242270,-528.15843882,0.00022608,2]
[365714143,1749844242280,-2506.18882283,0.00022624,7]
[365714144,1749844242289,-1500.0,0.00022655,2]
[365714145,1749844242298,-160.0,0.00022697,2]
[365714147,1749844242307,-160.0,0.00022697,2]
[365714148,1749844242315,-229.78555783,0.00022697,2]
[365714149,1749844242325,-500.0,0.0002271,2]
[365714150,1749844242334,-2506.18882283,0.00022728,7]
[365714152,1749844242343,-464.7,0.00022738,4]
[365714153,1749844242353,-460.0,0.00022739,2]
[365714155,1749844242363,-460.0,0.00022739,4]
[365714157,1749844242373,-487.34,0.00022739,4]
[365714163,1749844242473,-460.0,0.00022739,4]
[365714164,1749844242485,-1267.0,0.00022739,4]
[365714165,1749844242495,-322.3,0.00022739,4]
[365714166,1749844242504,-460.0,0.00022739,4]
[365714168,1749844242513,-813.82,0.00022739,4]
[365714170,1749844242523,-371.87259883,0.00022739,4]
[365714172,1749844242532,-818.62,0.00022739,4]
[365714173,1749844242541,-585.46,0.00022739,4]
[365714174,1749844242551,-460.0,0.00022739,4]
[365714175,1749844242560,-1158.1,0.00022739,4]
[365714176,1749844242571,-460.0,0.00022739,4]
[365714177,1749844242580,-3468.8,0.00022739,4]
[365714178,1749844242589,-460.0,0.00022739,4]
[365714179,1749844242598,-626.88,0.00022739,4]
[365714180,1749844242608,-1528.91,0.00022739,4]
[365714181,1749844242617,-658.05,0.00022739,4]
[365714182,1749844242627,-460.0,0.00022739,4]
[365714183,1749844242637,-353.0,0.00022784,2]
[365714184,1749844242646,-503.48503408,0.00022817,2]
[365714185,1749844242656,-2506.18882283,0.00022831,8]
[365714186,1749844242665,-151.0,0.00022844,2]
[365714187,1749844242674,-207.4,0.00022844,2]
[365714188,1749844242684,-5000.0,0.00022844,2]
[365714189,1749844242694,-1688.0,0.00022844,2]
[365714190,1749844242703,-2968.1432389,0.00022844,2]
[365714191,1749844242712,-500.0,0.00022844,2]
[365714192,1749844242721,-500.0,0.00022844,2]
[365714193,1749844242731,-500.0,0.00022844,2]
[365714194,1749844242739,-500.0,0.00022844,2]
[365714195,1749844242749,-500.0,0.00022844,2]
[365714196,1749844242758,-500.0,0.00022844,2]
[365714197,1749844242767,-500.0,0.00022844,2]
[365714198,1749844242776,-500.0,0.00022844,2]
[365714199,1749844242786,-500.0,0.00022844,2]
[365714200,1749844242797,-500.0,0.00022844,2]
[365714201,1749844242808,-500.0,0.00022844,2]
[365714202,1749844242816,-500.0,0.00022844,2]
[365714203,1749844242826,-500.0,0.00022844,2]
[365714204,1749844242836,-500.0,0.00022844,2]
[365714205,1749844242845,-500.0,0.00022844,2]
[365714206,1749844242854,-151.0,0.00022844,2]
[365714207,1749844242868,-151.0,0.00022844,2]
[365714209,1749844242878,-151.0,0.00022844,2]
[365714211,1749844242888,-151.0,0.00022844,2]
[365714212,1749844242898,-151.0,0.00022844,2]
[365714213,1749844242907,-270.98328894,0.00022844,2]
[365714214,1749844242916,-216.63087839,0.00022844,2]
[365714215,1749844242926,-1750.456,0.00022899,2]
[365714216,1749844242936,-2506.18882283,0.00022934,8]
[365714217,1749844242945,-420.0,0.00022943,2]
[365714218,1749844242955,-420.0,0.00022943,2]
[365714219,1749844242964,-1815.222872,0.00022954,2]
[365714220,1749844242973,-500.0,0.00022973,2]
[365714221,1749844242983,-112468.51,0.00023,2]
[365714222,1749844242992,-464.7,0.00023012,4]
[365714223,1749844243002,-460.0,0.00023013,2]
[365714224,1749844243011,-487.34,0.00023013,4]
[365714225,1749844243021,-460.0,0.00023013,4]
[365714226,1749844243030,-1267.0,0.00023013,4]
[365714227,1749844243039,-460.0,0.00023013,4]
[365714228,1749844243049,-813.82,0.00023013,4]
[365714229,1749844243059,-818.62,0.00023013,4]
[365714230,1749844243071,-525.47763592,0.00023013,4]
[365714231,1749844243081,-1158.1,0.00023013,4]
[365714233,1749844243091,-460.0,0.00023013,4]
[365714235,1749844243101,-3468.8,0.00023013,4]
[365714236,1749844243110,-460.0,0.00023013,4]
[365714238,1749844243121,-626.88,0.00023013,4]
[365714239,1749844243130,-1528.91,0.00023013,4]
[365714240,1749844243140,-658.05,0.00023013,4]
[365714241,1749844243149,-460.0,0.00023013,4]
[365714242,1749844243158,-1005.00855098,0.00023021,2]
[365714243,1749844243168,-500.0,0.00023021,2]
[365714244,1749844243177,-160.0,0.00023022,3]
[365714245,1749844243186,-2506.18882283,0.00023038,8]
[365714246,1749844243196,-528.15843882,0.00023141,2]
[365714247,1749844243206,-2506.18882283,0.00023141,8]
[365714248,1749844243216,-250.0,0.00023164,2]
[365714249,1749844243225,-4541.27,0.000232,7]
[365714250,1749844243235,-497.99531911,0.00023203,2]
[365714251,1749844243244,-2506.18882283,0.00023245,8]
[365714252,1749844243254,-1000.0,0.00023258,2]
[365714253,1749844243263,-160.0,0.00023279,2]
[365714254,1749844243273,-464.7,0.00023286,4]
[365714255,1749844243282,-460.0,0.00023287,2]
[365714256,1749844243292,-487.34,0.00023287,4]
[365714257,1749844243302,-460.0,0.00023287,4]
[365714258,1749844243312,-1267.0,0.00023287,4]
[365714259,1749844243323,-460.0,0.00023287,4]
[365714260,1749844243332,-813.82,0.00023287,4]
[365714261,1749844243342,-818.62,0.00023287,4]
[365714262,1749844243351,-1158.1,0.00023287,4]
[365714263,1749844243360,-570.67,0.00023287,4]
[365714264,1749844243370,-3468.8,0.00023287,4]
[365714265,1749844243380,-460.0,0.00023287,4]
[365714266,1749844243389,-626.88,0.00023287,4]
[365714267,1749844243399,-1528.91,0.00023287,4]
[365714268,1749844243408,-658.05,0.00023287,4]
[365714269,1749844243418,-552.0574046,0.00023287,4]
[365714270,1749844243427,-153.0,0.00023288,2]
[365714271,1749844243436,-153.0,0.00023288,2]
[365714272,1749844243446,-153.0,0.00023288,2]
[365714273,1749844243456,-153.0,0.00023288,2]
[365714274,1749844243465,-151.0,0.000233,6]
[365714275,1749844243475,-2506.18882283,0.00023348,9]
[365714276,1749844243485,-5000.0,0.00023392,2]
[365714277,1749844243495,-1426.11,0.000234,2]
[365714278,1749844243506,-166.50369972,0.00023425,2]
[365714279,1749844243531,-2506.18882283,0.00023452,9]
[365714280,1749844243544,-500.91748917,0.00023473,2]
[365714281,1749844243555,-304.63792749,0.00023473,2]
[365714282,1749844243565,-500.0,0.00023473,2]
[365714283,1749844243577,-227.42880251,0.00023473,2]
[365714284,1749844243587,-500.0,0.00023473,2]
[365714285,1749844243596,-500.0,0.00023473,2]
[365714286,1749844243606,-500.0,0.00023473,2]
[365714287,1749844243616,-142093.07,0.000235,7]
[365714288,1749844243626,-151.0,0.000235,5]
[365714289,1749844243636,-1001.89008847,0.00023521,2]
[365714290,1749844243646,-2506.18882283,0.00023555,9]
[365714291,1749844243656,-464.7,0.0002356,4]
[365714292,1749844243666,-460.0,0.00023561,2]
[365714293,1749844243676,-200.0,0.00023561,4]
[365714294,1749844243686,-200.0,0.00023561,4]
[365714295,1749844243696,-200.0,0.00023561,4]
[365714296,1749844243705,-200.0,0.00023561,4]
[365714297,1749844243716,-200.0,0.00023561,4]
[365714298,1749844243725,-200.0,0.00023561,4]
[365714299,1749844243735,-200.0,0.00023561,4]
[365714300,1749844243746,-200.0,0.00023561,4]
[365714301,1749844243755,-487.34,0.00023561,4]
[365714302,1749844243764,-460.0,0.00023561,4]
[365714303,1749844243774,-1267.0,0.00023561,4]
[365714304,1749844243784,-460.0,0.00023561,4]
[365714305,1749844243794,-813.82,0.00023561,4]
[365714306,1749844243803,-818.62,0.00023561,4]
[365714307,1749844243812,-1158.1,0.00023561,4]
[365714308,1749844243824,-3468.8,0.00023561,4]
[365714309,1749844243834,-469.0,0.00023561,4]
[365714310,1749844243843,-626.88,0.00023561,4]
[365714311,1749844243852,-1528.91,0.00023561,4]
[365714312,1749844243865,-658.05,0.00023561,4]
[365714313,1749844243874,-3608.0,0.00023562,2]
[365714314,1749844243883,-151.0,0.000236,7]
[365714315,1749844243893,-2321.26,0.000236,7]
[365714316,1749844243903,-2506.18882283,0.00023659,9]
[365714317,1749844243913,-528.15843882,0.00023673,2]
[365714318,1749844243922,-173.9379647,0.0002368,4]
[365714319,1749844243932,-173.9379647,0.0002368,4]
[365714320,1749844243942,-173.9379647,0.0002368,4]
[365714321,1749844243951,-173.93,0.0002368,4]
[365714323,1749844243961,-162.34210038,0.0002368,4]
[365714326,1749844243970,-162.34210038,0.0002368,4]
[365714328,1749844243980,-162.34210038,0.0002368,4]
[365714330,1749844243989,-162.34210038,0.0002368,4]
[365714332,1749844243999,-162.34210038,0.0002368,4]
[365714333,1749844244007,-162.34210038,0.0002368,4]
[365714335,1749844244017,-162.34210038,0.0002368,4]
[365714337,1749844244026,-162.34210038,0.0002368,4]
[365714339,1749844244036,-162.34210038,0.0002368,4]
[365714340,1749844244045,-151.0,0.000237,7]
[365714341,1749844244054,-2066.44124486,0.000237,2]
[365714342,1749844244063,-166.73694563,0.000237,2]
[365714343,1749844244074,-162.34,0.000237,4]
[365714344,1749844244083,-166.50369972,0.00023726,2]
[365714345,1749844244092,-2506.18882283,0.00023762,9]
[365714346,1749844244102,-501.98508171,0.00023773,2]
[365714347,1749844244111,-500.0,0.00023773,2]
[365714348,1749844244120,-500.0,0.00023773,2]
[365714349,1749844244129,-500.0,0.00023773,2]
[365714350,1749844244139,-310.26841365,0.00023773,2]
[365714351,1749844244148,-500.0,0.00023773,2]
[365714352,1749844244157,-500.48958838,0.00023773,2]
[365714353,1749844244167,-500.0,0.00023773,2]
[365714354,1749844244176,-503.00566977,0.00023773,2]
[365714355,1749844244185,-500.0,0.00023773,2]
[365714356,1749844244195,-500.0,0.00023773,2]
[365714357,1749844244204,-500.0,0.00023773,2]
[365714358,1749844244213,-501.03912607,0.00023773,2]
[365714359,1749844244222,-500.0,0.00023773,2]
[365714360,1749844244231,-500.0,0.00023773,2]
[365714361,1749844244240,-500.0,0.00023773,2]
[365714362,1749844244249,-500.0,0.00023773,2]
[365714363,1749844244259,-500.42355388,0.00023773,2]
[365714364,1749844244268,-500.0,0.00023773,2]
[365714365,1749844244277,-500.0,0.00023773,2]
[365714366,1749844244285,-500.0,0.00023773,2]
[365714367,1749844244294,-500.0,0.00023773,2]
[365714368,1749844244303,-500.0,0.00023773,2]
[365714369,1749844244313,-220.41741011,0.00023773,2]
[365714370,1749844244322,-600.0,0.00023773,2]
[365714371,1749844244332,-240.58970932,0.00023773,2]
[365714372,1749844244341,-500.0,0.00023773,2]
[365714373,1749844244351,-500.0,0.00023773,2]
[365714374,1749844244360,-500.0,0.00023773,2]
[365714376,1749844244369,-503.41766689,0.00023773,2]
[365714377,1749844244378,-246803.06688608,0.0002378,5]
[365714379,1749844244387,-964.0,0.00023793,2]
[365714381,1749844244397,-653.0,0.00023793,2]
[365714383,1749844244406,-2160.0,0.00023793,2]
[365714384,1749844244417,-1121.84,0.000238,2]
[365714385,1749844244426,-41181.43651932,0.000238,2]
[365714386,1749844244435,-404931.32722921,0.000238,3]
[365714387,1749844244445,-115603.42184511,0.000238,5]
[365714388,1749844244455,-151.0,0.000238,7]
[365714389,1749844244464,-151.0,0.000238,7]
[365714390,1749844244474,-313.419597,0.000238,7]
[365714391,1749844244483,-313.419597,0.000238,7]
[365714392,1749844244492,-424.32678023,0.000238,3]
[365714393,1749844244502,-229.78555783,0.000238,3]
[365714394,1749844244511,-160.0,0.000238,3]
[365714395,1749844244520,-160.0,0.000238,3]
[365714396,1749844244530,-151.0,0.000238,7]
[365714397,1749844244540,-835.28007164,0.000238,3]
[365714398,1749844244549,-151.0,0.000238,7]
[365714399,1749844244559,-160.430902,0.000238,7]
[365714400,1749844244568,-160.430902,0.000238,7]
[365714401,1749844244578,-151.0,0.000238,7]
[365714402,1749844244587,-577.732995,0.000238,7]
[365714403,1749844244597,-1500.0,0.00023806,2]
[365714404,1749844244606,-2066.44124479,0.00023825,2]
[365714405,1749844244615,-464.7,0.00023834,4]
[365714406,1749844244625,-460.0,0.00023835,2]
[365714407,1749844244635,-487.34,0.00023835,4]
[365714408,1749844244646,-460.0,0.00023835,4]
[365714409,1749844244656,-1267.0,0.00023835,4]
[365714410,1749844244666,-460.0,0.00023835,4]
[365714411,1749844244675,-813.82,0.00023835,4]
[365714412,1749844244685,-818.62,0.00023835,4]
[365714413,1749844244694,-1158.1,0.00023835,4]
[365714414,1749844244794,-3468.8,0.00023835,4]
[365714415,1749844244804,-626.88,0.00023835,4]
[365714416,1749844244814,-1528.91,0.00023835,4]
[365714417,1749844244825,-658.05,0.00023835,4]
[365714418,1749844244835,-2506.18882283,0.00023866,10]
[365714419,1749844244844,-473.0,0.0002389,2]
[365714420,1749844244854,-101088.78792498,0.000239,2]
[365714423,1749844246760,-302.60933737,0.00021643,4]
[365714424,1749844246773,-117.39066263,0.00021643,4]
[365714425,1749844246782,-3356.72716405,0.000239,2]
[365714426,1749844247111,-300.0,0.00021095,4]
[365714427,1749844247120,-460.0,0.00021095,4]
[365714428,1749844247129,-460.0,0.00021369,4]